[Event "November 21 Early 2023"]
[Site "https://www.chess.com"]
[Date "2023.11.21"]
[Round "2"]
[White "kaanadayhamle"]
[Black "Kovalenko, Igor"]
[Result "0-1"]
[Board "132"]
[TimeControl "180+1"]
[BlackFideId "14117908"]
[WhiteElo "2420"]
[BlackElo "2574"]
[BlackTeam "UKR"]
[WhiteClock "0:00:03"]
[BlackClock "0:01:52"]

1. Nf3 {[%clk 0:03:00]}  g6 {[%clk 0:02:59]} 2. g3 {[%clk 0:03:01]}  Bg7 {[%clk 0:03:00]} 3. Bg2 {[%clk 0:03:02]}  Nf6 {[%clk 0:03:00]} 4. O-O {[%clk 0:03:02]}  c5 {[%clk 0:03:01]} 5. c4 {[%clk 0:03:02]}  Nc6 {[%clk 0:03:00]} 6. Nc3 {[%clk 0:03:03]}  d6 {[%clk 0:03:00]} 7. d4 {[%clk 0:03:02]}  cxd4 {[%clk 0:03:00]} 8. Nxd4 {[%clk 0:03:03]}  Bd7 {[%clk 0:03:01]} 9. e4 {[%clk 0:02:59]}  O-O {[%clk 0:03:00]} 10. Nc2 {[%clk 0:03:00]}  Rc8 {[%clk 0:02:59]} 11. b3 {[%clk 0:02:59]}  a6 {[%clk 0:02:56]} 12. Bb2 {[%clk 0:02:59]}  Qa5 {[%clk 0:02:50]} 13. Nd5 {[%clk 0:02:39]}  Nxd5 {[%clk 0:02:49]} 14. Bxg7 {[%clk 0:02:39]}  Nc3 {[%clk 0:02:48]} 15. Bxc3 {[%clk 0:02:39]}  Qxc3 {[%clk 0:02:49]} 16. Ne3 {[%clk 0:02:40]}  b5 {[%clk 0:02:47]} 17. Nd5 {[%clk 0:02:39]}  Qa5 {[%clk 0:02:43]} 18. cxb5 {[%clk 0:02:10]}  axb5 {[%clk 0:02:40]} 19. Rc1 {[%clk 0:02:04]}  Rfe8 {[%clk 0:02:36]} 20. a4 {[%clk 0:01:32]}  bxa4 {[%clk 0:02:35]} 21. bxa4 {[%clk 0:01:33]}  Kg7 {[%clk 0:02:29]} 22. h4 {[%clk 0:01:15]}  h5 {[%clk 0:02:24]} 23. Kh2 {[%clk 0:01:14]}  Bg4 {[%clk 0:02:20]} 24. f3 {[%clk 0:00:25]}  Be6 {[%clk 0:02:19]} 25. Nf4 {[%clk 0:00:20]}  Bd7 {[%clk 0:02:15]} 26. Nd5 {[%clk 0:00:20]}  e5 {[%clk 0:02:09]} 27. Ne3 {[%clk 0:00:16]}  Nd4 {[%clk 0:02:09]} 28. Nc4 {[%clk 0:00:16]}  Qa6 {[%clk 0:02:09]} 29. Qd3 {[%clk 0:00:12]}  Rc6 {[%clk 0:02:03]} 30. Nb2 {[%clk 0:00:10]}  Qxd3 {[%clk 0:02:03]} 31. Nxd3 {[%clk 0:00:10]}  Ra6 {[%clk 0:02:03]} 32. Rc7 {[%clk 0:00:10]}  Bxa4 {[%clk 0:02:03]} 33. f4 {[%clk 0:00:10]}  Bb5 {[%clk 0:02:02]} 34. Rd1 {[%clk 0:00:11]}  Bxd3 {[%clk 0:01:59]} 35. Rxd3 {[%clk 0:00:12]}  Ra2 {[%clk 0:02:00]} 36. fxe5 {[%clk 0:00:11]}  dxe5 {[%clk 0:01:59]} 37. Kh3 {[%clk 0:00:12]}  Re6 {[%clk 0:01:59]} 38. Rc1 {[%clk 0:00:09]}  Rf6 {[%clk 0:01:59]} 39. Re3 {[%clk 0:00:05]}  Rff2 {[%clk 0:01:59]} 40. Rg1 {[%clk 0:00:06]}  Nc6 {[%clk 0:01:52]} 41. Rf1 {[%clk 0:00:03]}  Rxg2 {[%clk 0:01:52]} 0-1

[Event "November 21 Early 2023"]
[Site "https://www.chess.com"]
[Date "2023.11.21"]
[Round "2"]
[White "Yeletsky, Ivan"]
[Black "Zeman, Matyas"]
[Result "1-0"]
[Board "134"]
[TimeControl "180+1"]
[WhiteFideId "24180327"]
[BlackFideId "364398"]
[WhiteElo "2358"]
[BlackElo "2286"]
[WhiteTeam "RUS"]
[BlackTeam "CZE"]
[WhiteClock "0:02:52"]
[BlackClock "0:02:41"]

1. Nf3 {[%clk 0:03:00]}  Nf6 {[%clk 0:02:55]} 2. c4 {[%clk 0:03:00]}  e6 {[%clk 0:02:55]} 3. Nc3 {[%clk 0:03:00]}  d5 {[%clk 0:02:56]} 4. d4 {[%clk 0:03:00]}  c5 {[%clk 0:02:56]} 5. cxd5 {[%clk 0:02:57]}  Nxd5 {[%clk 0:02:57]} 6. e3 {[%clk 0:02:54]}  Nxc3 {[%clk 0:02:55]} 7. bxc3 {[%clk 0:02:54]}  cxd4 {[%clk 0:02:56]} 8. cxd4 {[%clk 0:02:54]}  Bb4+ {[%clk 0:02:56]} 9. Bd2 {[%clk 0:02:54]}  Bxd2+ {[%clk 0:02:56]} 10. Qxd2 {[%clk 0:02:54]}  O-O {[%clk 0:02:57]} 11. Bd3 {[%clk 0:02:52]}  b6 {[%clk 0:02:41]} 12. Be4 {[%clk 0:02:52]} 1-0

[Event "November 21 Early 2023"]
[Site "https://www.chess.com"]
[Date "2023.11.21"]
[Round "2"]
[White "Gutkin, Ilya"]
[Black "Boruchovsky, Avital"]
[Result "1-0"]
[Board "135"]
[TimeControl "180+1"]
[WhiteFideId "16203470"]
[BlackFideId "2800055"]
[WhiteElo "2248"]
[BlackElo "2450"]
[WhiteTeam "GER"]
[BlackTeam "ISR"]
[WhiteClock "0:00:21"]
[BlackClock "0:00:17"]

1. e4 {[%clk 0:03:00]}  e6 {[%clk 0:02:59]} 2. d4 {[%clk 0:03:00]}  d5 {[%clk 0:03:00]} 3. Nc3 {[%clk 0:03:00]}  Nf6 {[%clk 0:02:57]} 4. e5 {[%clk 0:03:00]}  Nfd7 {[%clk 0:02:57]} 5. f4 {[%clk 0:03:00]}  c5 {[%clk 0:02:57]} 6. Nf3 {[%clk 0:03:00]}  Nc6 {[%clk 0:02:57]} 7. Be3 {[%clk 0:02:59]}  a6 {[%clk 0:02:53]} 8. Qd2 {[%clk 0:02:59]}  b5 {[%clk 0:02:53]} 9. g3 {[%clk 0:02:56]}  Bb7 {[%clk 0:02:48]} 10. Bh3 {[%clk 0:02:55]}  cxd4 {[%clk 0:02:46]} 11. Nxd4 {[%clk 0:02:55]}  Nxd4 {[%clk 0:02:46]} 12. Bxd4 {[%clk 0:02:55]}  g6 {[%clk 0:02:45]} 13. O-O {[%clk 0:02:53]}  Nc5 {[%clk 0:02:37]} 14. Qe3 {[%clk 0:02:42]}  Rc8 {[%clk 0:02:36]} 15. Rad1 {[%clk 0:02:25]}  b4 {[%clk 0:02:31]} 16. Ne2 {[%clk 0:02:25]}  Ne4 {[%clk 0:02:31]} 17. c3 {[%clk 0:02:21]}  a5 {[%clk 0:02:17]} 18. g4 {[%clk 0:02:16]}  h5 {[%clk 0:02:15]} 19. f5 {[%clk 0:02:07]}  hxg4 {[%clk 0:02:11]} 20. fxe6 {[%clk 0:02:07]}  Qh4 {[%clk 0:01:36]} 21. exf7+ {[%clk 0:01:59]}  Kd7 {[%clk 0:01:36]} 22. e6+ {[%clk 0:01:55]}  Kc6 {[%clk 0:01:19]} 23. Bxh8 {[%clk 0:01:46]}  gxh3 {[%clk 0:01:13]} 24. Nd4+ {[%clk 0:01:39]}  Kd6 {[%clk 0:01:01]} 25. Qf4+ {[%clk 0:01:29]}  Qxf4 {[%clk 0:01:01]} 26. Rxf4 {[%clk 0:01:29]}  bxc3 {[%clk 0:00:58]} 27. bxc3 {[%clk 0:01:22]}  Ba6 {[%clk 0:00:51]} 28. Bf6 {[%clk 0:00:34]}  Bh6 {[%clk 0:00:38]} 29. Rxe4 {[%clk 0:00:29]}  dxe4 {[%clk 0:00:36]} 30. e7 {[%clk 0:00:27]}  Be3+ {[%clk 0:00:18]} 31. Kh1 {[%clk 0:00:24]}  Bf2 {[%clk 0:00:17]} 32. e8=Q {[%clk 0:00:21]} 1-0

[Event "November 21 Early 2023"]
[Site "https://www.chess.com"]
[Date "2023.11.21"]
[Round "2"]
[White "Vasquez Schroeder, Rodrigo"]
[Black "Osinovsky, Stepan"]
[Result "0-1"]
[Board "136"]
[TimeControl "180+1"]
[WhiteFideId "3400042"]
[BlackFideId "4157354"]
[WhiteElo "2582"]
[BlackElo "2222"]
[WhiteTeam "CHI"]
[BlackTeam "RUS"]
[WhiteClock "0:00:29"]
[BlackClock "0:00:12"]

1. e4 {[%clk 0:03:00]}  e5 {[%clk 0:02:58]} 2. Nf3 {[%clk 0:03:00]}  Nc6 {[%clk 0:02:58]} 3. Bb5 {[%clk 0:03:01]}  a6 {[%clk 0:02:57]} 4. Ba4 {[%clk 0:03:01]}  Nf6 {[%clk 0:02:57]} 5. O-O {[%clk 0:03:02]}  Be7 {[%clk 0:02:58]} 6. Re1 {[%clk 0:03:02]}  b5 {[%clk 0:02:58]} 7. Bb3 {[%clk 0:03:02]}  O-O {[%clk 0:02:59]} 8. h3 {[%clk 0:03:02]}  d5 {[%clk 0:02:56]} 9. exd5 {[%clk 0:03:01]}  Nxd5 {[%clk 0:02:57]} 10. Nxe5 {[%clk 0:02:54]}  Nxe5 {[%clk 0:02:57]} 11. Rxe5 {[%clk 0:02:54]}  Bb7 {[%clk 0:02:55]} 12. Nc3 {[%clk 0:02:43]}  Nf4 {[%clk 0:02:43]} 13. d4 {[%clk 0:02:27]}  Nxg2 {[%clk 0:02:38]} 14. d5 {[%clk 0:02:22]}  Nh4 {[%clk 0:02:35]} 15. Qg4 {[%clk 0:02:19]}  Ng6 {[%clk 0:02:08]} 16. Rh5 {[%clk 0:02:14]}  Bc8 {[%clk 0:01:20]} 17. Qe4 {[%clk 0:02:02]}  Bd6 {[%clk 0:01:15]} 18. Bg5 {[%clk 0:02:00]}  f6 {[%clk 0:01:12]} 19. Be3 {[%clk 0:01:57]}  f5 {[%clk 0:00:58]} 20. Qd4 {[%clk 0:01:47]}  f4 {[%clk 0:00:53]} 21. Bd2 {[%clk 0:01:46]}  Nh4 {[%clk 0:00:50]} 22. Qe4 {[%clk 0:01:28]}  Bf5 {[%clk 0:00:46]} 23. Rxf5 {[%clk 0:01:16]}  Rxf5 {[%clk 0:00:44]} 24. Kf1 {[%clk 0:01:16]}  Qg5 {[%clk 0:00:42]} 25. Re1 {[%clk 0:01:11]}  Re5 {[%clk 0:00:26]} 26. Qh1 {[%clk 0:01:09]}  Rae8 {[%clk 0:00:25]} 27. Ne4 {[%clk 0:00:59]}  Qf5 {[%clk 0:00:23]} 28. Nxd6 {[%clk 0:00:54]}  cxd6 {[%clk 0:00:24]} 29. f3 {[%clk 0:00:50]}  Rxe1+ {[%clk 0:00:18]} 30. Bxe1 {[%clk 0:00:50]}  Qe5 {[%clk 0:00:14]} 31. Bxh4 {[%clk 0:00:49]}  Qe2+ {[%clk 0:00:14]} 32. Kg1 {[%clk 0:00:48]}  Qd1+ {[%clk 0:00:15]} 33. Kh2 {[%clk 0:00:44]}  Re2+ {[%clk 0:00:15]} 34. Qg2 {[%clk 0:00:44]}  Rxg2+ {[%clk 0:00:15]} 35. Kxg2 {[%clk 0:00:45]}  Qe2+ {[%clk 0:00:14]} 36. Bf2 {[%clk 0:00:46]}  g5 {[%clk 0:00:13]} 37. a4 {[%clk 0:00:43]}  Kg7 {[%clk 0:00:13]} 38. axb5 {[%clk 0:00:43]}  axb5 {[%clk 0:00:14]} 39. Ba2 {[%clk 0:00:40]}  h5 {[%clk 0:00:13]} 40. Bb3 {[%clk 0:00:38]}  Kf6 {[%clk 0:00:12]} 41. c3 {[%clk 0:00:35]}  Qxb2 {[%clk 0:00:12]} 42. Bd1 {[%clk 0:00:35]}  Qd2 {[%clk 0:00:12]} 43. Bb3 {[%clk 0:00:34]}  Qxc3 {[%clk 0:00:11]} 44. Bd1 {[%clk 0:00:34]}  Qd2 {[%clk 0:00:12]} 45. Bb3 {[%clk 0:00:34]}  g4 {[%clk 0:00:12]} 46. hxg4 {[%clk 0:00:34]}  hxg4 {[%clk 0:00:13]} 47. fxg4 {[%clk 0:00:35]}  Kg5 {[%clk 0:00:14]} 48. Kg1 {[%clk 0:00:29]}  Kxg4 {[%clk 0:00:12]} 0-1

[Event "November 21 Early 2023"]
[Site "https://www.chess.com"]
[Date "2023.11.21"]
[Round "2"]
[White "Sonis, Francesco"]
[Black "Goldin, Roman"]
[Result "1-0"]
[Board "138"]
[TimeControl "180+1"]
[WhiteFideId "895733"]
[BlackFideId "2803860"]
[WhiteElo "2435"]
[BlackElo "2312"]
[WhiteTeam "ITA"]
[BlackTeam "ISR"]
[WhiteClock "0:01:25"]
[BlackClock "0:00:00"]

1. e4 {[%clk 0:03:00]}  Nc6 {[%clk 0:02:59]} 2. Nf3 {[%clk 0:02:59]}  e5 {[%clk 0:02:59]} 3. Bc4 {[%clk 0:02:55]}  Nf6 {[%clk 0:02:58]} 4. d3 {[%clk 0:02:55]}  Be7 {[%clk 0:02:53]} 5. a4 {[%clk 0:02:52]}  O-O {[%clk 0:02:49]} 6. Nc3 {[%clk 0:02:51]}  d6 {[%clk 0:02:47]} 7. O-O {[%clk 0:02:43]}  Be6 {[%clk 0:02:46]} 8. Bxe6 {[%clk 0:02:32]}  fxe6 {[%clk 0:02:46]} 9. h3 {[%clk 0:02:24]}  Qe8 {[%clk 0:02:43]} 10. Be3 {[%clk 0:02:18]}  Nh5 {[%clk 0:02:42]} 11. g3 {[%clk 0:02:14]}  a6 {[%clk 0:02:32]} 12. Kh2 {[%clk 0:02:11]}  h6 {[%clk 0:02:19]} 13. a5 {[%clk 0:02:10]}  Qg6 {[%clk 0:01:57]} 14. Nd2 {[%clk 0:01:54]}  Rf7 {[%clk 0:01:36]} 15. Qg4 {[%clk 0:01:51]}  Qxg4 {[%clk 0:01:23]} 16. hxg4 {[%clk 0:01:46]}  Nf6 {[%clk 0:01:02]} 17. f3 {[%clk 0:01:46]}  Raf8 {[%clk 0:00:58]} 18. Kg2 {[%clk 0:01:41]}  d5 {[%clk 0:00:52]} 19. Bg1 {[%clk 0:01:36]}  Bb4 {[%clk 0:00:47]} 20. Nb3 {[%clk 0:01:37]}  Bxc3 {[%clk 0:00:06]} 21. bxc3 {[%clk 0:01:36]}  dxe4 {[%clk 0:00:07]} 22. dxe4 {[%clk 0:01:35]}  Rd7 {[%clk 0:00:07]} 23. Be3 {[%clk 0:01:33]}  Rfd8 {[%clk 0:00:06]} 24. Nc5 {[%clk 0:01:30]}  Re7 {[%clk 0:00:04]} 25. Nxb7 {[%clk 0:01:29]}  Rb8 {[%clk 0:00:03]} 26. Nc5 {[%clk 0:01:29]}  Nd7 {[%clk 0:00:00]} 27. Nxa6 {[%clk 0:01:25]} 1-0

[Event "November 21 Early 2023"]
[Site "https://www.chess.com"]
[Date "2023.11.21"]
[Round "2"]
[White "Lebedev, Artem S."]
[Black "Materia, Marco"]
[Result "0-1"]
[Board "139"]
[TimeControl "180+1"]
[WhiteFideId "34272747"]
[BlackFideId "45150451"]
[WhiteElo "1952"]
[BlackElo "2451"]
[WhiteTeam "RUS"]
[BlackTeam "FRA"]
[WhiteClock "0:00:00"]
[BlackClock "0:00:06"]

1. e4 {[%clk 0:03:00]}  c5 {[%clk 0:03:00]} 2. Nf3 {[%clk 0:03:00]}  e6 {[%clk 0:03:00]} 3. d4 {[%clk 0:02:59]}  cxd4 {[%clk 0:03:01]} 4. Nxd4 {[%clk 0:03:00]}  Nc6 {[%clk 0:03:01]} 5. Nc3 {[%clk 0:02:59]}  Qc7 {[%clk 0:03:01]} 6. Be3 {[%clk 0:02:57]}  a6 {[%clk 0:03:01]} 7. Qd2 {[%clk 0:02:57]}  b5 {[%clk 0:03:00]} 8. O-O-O {[%clk 0:02:56]}  Nf6 {[%clk 0:02:55]} 9. Bf4 {[%clk 0:02:54]}  Ne5 {[%clk 0:02:37]} 10. Nf3 {[%clk 0:02:35]}  Nxf3 {[%clk 0:02:31]} 11. gxf3 {[%clk 0:02:33]}  Qa5 {[%clk 0:02:26]} 12. Kb1 {[%clk 0:02:27]}  Be7 {[%clk 0:02:20]} 13. Rg1 {[%clk 0:02:12]}  b4 {[%clk 0:02:04]} 14. Ne2 {[%clk 0:01:20]}  O-O {[%clk 0:01:55]} 15. Bd6 {[%clk 0:01:19]}  Bxd6 {[%clk 0:01:40]} 16. Qxd6 {[%clk 0:01:20]}  Ne8 {[%clk 0:01:39]} 17. Qe7 {[%clk 0:01:08]}  Qe5 {[%clk 0:00:59]} 18. f4 {[%clk 0:00:56]}  Qc7 {[%clk 0:00:38]} 19. Ng3 {[%clk 0:00:30]}  d5 {[%clk 0:00:35]} 20. Qxb4 {[%clk 0:00:26]}  Rb8 {[%clk 0:00:21]} 21. Qa3 {[%clk 0:00:26]}  Qxf4 {[%clk 0:00:18]} 22. exd5 {[%clk 0:00:21]}  exd5 {[%clk 0:00:17]} 23. Bd3 {[%clk 0:00:21]}  Be6 {[%clk 0:00:15]} 24. Rde1 {[%clk 0:00:11]}  Nf6 {[%clk 0:00:14]} 25. Qc5 {[%clk 0:00:07]}  d4 {[%clk 0:00:11]} 26. Nh5 {[%clk 0:00:05]}  Nxh5 {[%clk 0:00:10]} 27. Qxh5 {[%clk 0:00:06]}  h6 {[%clk 0:00:09]} 28. Re4 {[%clk 0:00:03]}  Qxf2 {[%clk 0:00:08]} 29. Rge1 {[%clk 0:00:02]}  Rb6 {[%clk 0:00:06]} 30. Qc5 {[%clk 0:00:02]}  Rfb8 {[%clk 0:00:06]} 31. b3 {[%clk 0:00:02]}  Qxh2 {[%clk 0:00:05]} 32. Rxd4 {[%clk 0:00:02]}  g6 {[%clk 0:00:04]} 33. Rde4 {[%clk 0:00:02]}  Qg3 {[%clk 0:00:04]} 34. Qc3 {[%clk 0:00:02]}  Qg5 {[%clk 0:00:04]} 35. Qb2 {[%clk 0:00:02]}  Qe7 {[%clk 0:00:05]} 36. Bc4 {[%clk 0:00:02]}  Re8 {[%clk 0:00:03]} 37. Bxe6 {[%clk 0:00:02]}  Rxe6 {[%clk 0:00:04]} 38. Rxe6 {[%clk 0:00:03]}  fxe6 {[%clk 0:00:05]} 39. Qe5 {[%clk 0:00:03]}  Qf7 {[%clk 0:00:05]} 40. Qe4 {[%clk 0:00:03]}  Qf5 {[%clk 0:00:06]} 41. Qe2 {[%clk 0:00:03]}  e5 {[%clk 0:00:05]} 42. Qxa6 {[%clk 0:00:03]}  Qe6 {[%clk 0:00:06]} 43. Qd3 {[%clk 0:00:02]}  e4 {[%clk 0:00:06]} 44. Qe3 {[%clk 0:00:03]}  h5 {[%clk 0:00:06]} 45. a4 {[%clk 0:00:03]}  Kh7 {[%clk 0:00:06]} 46. Rg1 {[%clk 0:00:02]}  Qf5 {[%clk 0:00:06]} 47. Qe1 {[%clk 0:00:01]}  e3 {[%clk 0:00:06]} 48. Rf1 {[%clk 0:00:02]}  Qe6 {[%clk 0:00:06]} 49. Qe2 {[%clk 0:00:02]}  Qg4 {[%clk 0:00:06]} 50. Qd3 {[%clk 0:00:01]}  e2 {[%clk 0:00:06]} 51. Rf7+ {[%clk 0:00:00]}  Kg8 {[%clk 0:00:06]} 0-1

[Event "November 21 Early 2023"]
[Site "https://www.chess.com"]
[Date "2023.11.21"]
[Round "2"]
[White "Hulka, Valentyn"]
[Black "Pace, Christopher"]
[Result "1-0"]
[Board "140"]
[TimeControl "180+1"]
[WhiteFideId "34107061"]
[BlackFideId "2610167"]
[WhiteElo "2163"]
[BlackElo "2410"]
[WhiteTeam "UKR"]
[BlackTeam "CAN"]
[WhiteClock "0:02:21"]
[BlackClock "0:01:07"]

1. d4 {[%clk 0:03:00]}  Nf6 {[%clk 0:02:59]} 2. c4 {[%clk 0:03:01]}  e5 {[%clk 0:02:59]} 3. dxe5 {[%clk 0:03:01]}  Ng4 {[%clk 0:03:00]} 4. e3 {[%clk 0:03:00]}  Nxe5 {[%clk 0:02:58]} 5. f4 {[%clk 0:03:01]}  Nec6 {[%clk 0:02:59]} 6. Nc3 {[%clk 0:02:58]}  Bc5 {[%clk 0:02:59]} 7. Nd5 {[%clk 0:02:54]}  d6 {[%clk 0:02:56]} 8. b3 {[%clk 0:02:55]}  O-O {[%clk 0:02:55]} 9. Bb2 {[%clk 0:02:55]}  Be6 {[%clk 0:02:53]} 10. Nf3 {[%clk 0:02:51]}  Bxd5 {[%clk 0:02:52]} 11. cxd5 {[%clk 0:02:51]}  Bb4+ {[%clk 0:02:42]} 12. Kf2 {[%clk 0:02:50]}  Re8 {[%clk 0:02:25]} 13. dxc6 {[%clk 0:02:48]}  Nxc6 {[%clk 0:02:25]} 14. Bb5 {[%clk 0:02:43]}  Bc5 {[%clk 0:02:25]} 15. Re1 {[%clk 0:02:43]}  a6 {[%clk 0:02:21]} 16. Bxc6 {[%clk 0:02:42]}  bxc6 {[%clk 0:02:22]} 17. Bd4 {[%clk 0:02:41]}  Bb4 {[%clk 0:02:21]} 18. Re2 {[%clk 0:02:40]}  c5 {[%clk 0:01:54]} 19. Bb2 {[%clk 0:02:38]}  Ba5 {[%clk 0:01:55]} 20. Qd5 {[%clk 0:02:37]}  h6 {[%clk 0:01:46]} 21. Nd2 {[%clk 0:02:35]}  Bxd2 {[%clk 0:01:43]} 22. Qxd2 {[%clk 0:02:34]}  a5 {[%clk 0:01:41]} 23. e4 {[%clk 0:02:33]}  a4 {[%clk 0:01:39]} 24. Kg1 {[%clk 0:02:33]}  axb3 {[%clk 0:01:30]} 25. axb3 {[%clk 0:02:34]}  Rxa1+ {[%clk 0:01:31]} 26. Bxa1 {[%clk 0:02:33]}  Qa8 {[%clk 0:01:31]} 27. Qe1 {[%clk 0:02:31]}  Qa3 {[%clk 0:01:28]} 28. Qc3 {[%clk 0:02:29]}  f6 {[%clk 0:01:23]} 29. Bb2 {[%clk 0:02:29]}  Qa6 {[%clk 0:01:21]} 30. Qc4+ {[%clk 0:02:27]}  Qxc4 {[%clk 0:01:20]} 31. bxc4 {[%clk 0:02:28]}  Rb8 {[%clk 0:01:19]} 32. Kf2 {[%clk 0:02:29]}  Rb4 {[%clk 0:01:19]} 33. Rc2 {[%clk 0:02:30]}  Kf7 {[%clk 0:01:19]} 34. Ke3 {[%clk 0:02:30]}  Ke6 {[%clk 0:01:19]} 35. h3 {[%clk 0:02:28]}  Rb3+ {[%clk 0:01:19]} 36. Bc3 {[%clk 0:02:28]}  c6 {[%clk 0:01:15]} 37. Kd3 {[%clk 0:02:28]}  d5 {[%clk 0:01:15]} 38. exd5+ {[%clk 0:02:21]}  cxd5 {[%clk 0:01:16]} 39. Rb2 {[%clk 0:02:22]}  Rxb2 {[%clk 0:01:01]} 40. Bxb2 {[%clk 0:02:22]}  dxc4+ {[%clk 0:01:02]} 41. Ke4 {[%clk 0:02:16]}  f5+ {[%clk 0:00:59]} 42. Ke3 {[%clk 0:02:16]}  g6 {[%clk 0:00:58]} 43. Be5 {[%clk 0:02:17]}  Kd5 {[%clk 0:00:58]} 44. Bg7 {[%clk 0:02:16]}  h5 {[%clk 0:00:58]} 45. h4 {[%clk 0:02:14]}  c3 {[%clk 0:00:57]} 46. Bxc3 {[%clk 0:02:13]}  Kc4 {[%clk 0:00:58]} 47. Kd2 {[%clk 0:02:13]}  Kd5 {[%clk 0:00:59]} 48. Bf6 {[%clk 0:02:11]}  Ke4 {[%clk 0:00:59]} 49. Bg5 {[%clk 0:02:12]}  c4 {[%clk 0:00:56]} 50. Kc3 {[%clk 0:02:12]}  Ke3 {[%clk 0:00:56]} 51. Kxc4 {[%clk 0:02:12]}  Kf2 {[%clk 0:00:57]} 52. Kd5 {[%clk 0:02:12]}  Kxg2 {[%clk 0:00:58]} 53. Ke6 {[%clk 0:02:13]}  Kf3 {[%clk 0:00:58]} 54. Kf6 {[%clk 0:02:14]}  Kg4 {[%clk 0:00:59]} 55. Kxg6 {[%clk 0:02:15]}  Kf3 {[%clk 0:01:00]} 56. Kxh5 {[%clk 0:02:16]}  Kg3 {[%clk 0:01:00]} 57. Kg6 {[%clk 0:02:17]}  Kf2 {[%clk 0:01:01]} 58. h5 {[%clk 0:02:18]}  Ke2 {[%clk 0:01:02]} 59. h6 {[%clk 0:02:18]}  Kd2 {[%clk 0:01:03]} 60. h7 {[%clk 0:02:19]}  Kc2 {[%clk 0:01:03]} 61. h8=Q {[%clk 0:02:20]}  Kd2 {[%clk 0:01:04]} 62. Qf6 {[%clk 0:02:20]}  Kc2 {[%clk 0:01:05]} 63. Qxf5+ {[%clk 0:02:21]}  Kd2 {[%clk 0:01:06]} 64. Qg4 {[%clk 0:02:21]}  Kc2 {[%clk 0:01:07]} 1-0

[Event "November 21 Early 2023"]
[Site "https://www.chess.com"]
[Date "2023.11.21"]
[Round "2"]
[White "Darmanin, Jake"]
[Black "Nazari, Arad"]
[Result "0-1"]
[Board "141"]
[TimeControl "180+1"]
[WhiteFideId "5601061"]
[BlackFideId "12577324"]
[WhiteElo "2119"]
[BlackElo "2100"]
[WhiteTeam "MLT"]
[BlackTeam "IRI"]
[WhiteClock "0:00:10"]
[BlackClock "0:00:07"]

1. e4 {[%clk 0:03:00]}  c5 {[%clk 0:02:59]} 2. Nf3 {[%clk 0:03:00]}  d6 {[%clk 0:02:57]} 3. c3 {[%clk 0:03:00]}  Nf6 {[%clk 0:02:52]} 4. h3 {[%clk 0:03:00]}  g6 {[%clk 0:02:44]} 5. Bd3 {[%clk 0:03:00]}  Bg7 {[%clk 0:02:45]} 6. Bc2 {[%clk 0:03:01]}  O-O {[%clk 0:02:45]} 7. O-O {[%clk 0:02:59]}  Nc6 {[%clk 0:02:46]} 8. d4 {[%clk 0:02:59]}  e5 {[%clk 0:02:40]} 9. Re1 {[%clk 0:02:55]}  Nh5 {[%clk 0:02:26]} 10. dxc5 {[%clk 0:02:50]}  dxc5 {[%clk 0:02:26]} 11. Qxd8 {[%clk 0:02:48]}  Rxd8 {[%clk 0:02:27]} 12. Be3 {[%clk 0:02:48]}  b6 {[%clk 0:02:27]} 13. Nbd2 {[%clk 0:02:48]}  Ba6 {[%clk 0:02:20]} 14. Bb3 {[%clk 0:02:35]}  Na5 {[%clk 0:01:58]} 15. Bd5 {[%clk 0:02:33]}  Bb7 {[%clk 0:01:59]} 16. b4 {[%clk 0:02:27]}  Bxd5 {[%clk 0:01:48]} 17. exd5 {[%clk 0:02:19]}  cxb4 {[%clk 0:01:45]} 18. cxb4 {[%clk 0:02:19]}  Nb7 {[%clk 0:01:46]} 19. g4 {[%clk 0:02:07]}  Nf4 {[%clk 0:01:39]} 20. Bxf4 {[%clk 0:02:07]}  exf4 {[%clk 0:01:40]} 21. Rac1 {[%clk 0:02:05]}  Rxd5 {[%clk 0:01:39]} 22. Rc7 {[%clk 0:02:04]}  Nd6 {[%clk 0:01:11]} 23. Ne4 {[%clk 0:01:55]}  Nxe4 {[%clk 0:00:45]} 24. Rxe4 {[%clk 0:01:55]}  Bf8 {[%clk 0:00:40]} 25. g5 {[%clk 0:01:36]}  a5 {[%clk 0:00:31]} 26. a3 {[%clk 0:01:33]}  axb4 {[%clk 0:00:29]} 27. axb4 {[%clk 0:01:34]}  Rad8 {[%clk 0:00:26]} 28. h4 {[%clk 0:01:32]}  Rb5 {[%clk 0:00:16]} 29. Rb7 {[%clk 0:01:24]}  Rxb4 {[%clk 0:00:13]} 30. Rxb4 {[%clk 0:01:23]}  Bxb4 {[%clk 0:00:13]} 31. Rxb6 {[%clk 0:01:24]}  Bd6 {[%clk 0:00:14]} 32. Kg2 {[%clk 0:01:21]}  Kg7 {[%clk 0:00:15]} 33. Kh3 {[%clk 0:01:21]}  h5 {[%clk 0:00:14]} 34. gxh6+ {[%clk 0:01:20]}  Kxh6 {[%clk 0:00:15]} 35. Kg4 {[%clk 0:01:21]}  Kg7 {[%clk 0:00:08]} 36. Ng5 {[%clk 0:01:19]}  Rd7 {[%clk 0:00:07]} 37. Kf3 {[%clk 0:01:14]}  Bc5 {[%clk 0:00:07]} 38. Rc6 {[%clk 0:01:11]}  Ba7 {[%clk 0:00:07]} 39. Ne4 {[%clk 0:01:08]}  Rb7 {[%clk 0:00:06]} 40. Kxf4 {[%clk 0:01:08]}  Rb4 {[%clk 0:00:07]} 41. Kf3 {[%clk 0:01:07]}  Rb3+ {[%clk 0:00:07]} 42. Kg2 {[%clk 0:01:06]}  Rb4 {[%clk 0:00:07]} 43. f3 {[%clk 0:01:06]}  Rb2+ {[%clk 0:00:05]} 44. Kf1 {[%clk 0:01:04]}  Bb8 {[%clk 0:00:06]} 45. Rc5 {[%clk 0:00:58]}  Bf4 {[%clk 0:00:04]} 46. h5 {[%clk 0:00:56]}  Be3 {[%clk 0:00:03]} 47. Rd5 {[%clk 0:00:54]}  f5 {[%clk 0:00:03]} 48. Rd7+ {[%clk 0:00:51]}  Kh6 {[%clk 0:00:04]} 49. Nf6 {[%clk 0:00:38]}  Rf2+ {[%clk 0:00:04]} 50. Ke1 {[%clk 0:00:38]}  gxh5 {[%clk 0:00:02]} 51. Rh7+ {[%clk 0:00:31]}  Kg6 {[%clk 0:00:02]} 52. Rxh5 {[%clk 0:00:20]}  Kxf6 {[%clk 0:00:02]} 53. Rh3 {[%clk 0:00:20]}  f4 {[%clk 0:00:02]} 54. Kd1 {[%clk 0:00:18]}  Ra2 {[%clk 0:00:03]} 55. Ke1 {[%clk 0:00:18]}  Ke5 {[%clk 0:00:03]} 56. Rh8 {[%clk 0:00:16]}  Kd4 {[%clk 0:00:04]} 57. Rd8+ {[%clk 0:00:16]}  Kc3 {[%clk 0:00:05]} 58. Rc8+ {[%clk 0:00:16]}  Kd3 {[%clk 0:00:05]} 59. Rd8+ {[%clk 0:00:16]}  Bd4 {[%clk 0:00:06]} 60. Kf1 {[%clk 0:00:16]}  Rf2+ {[%clk 0:00:06]} 61. Ke1 {[%clk 0:00:16]}  Rxf3 {[%clk 0:00:06]} 62. Rd7 {[%clk 0:00:10]}  Rg3 {[%clk 0:00:07]} 0-1